[Event "Cellavision Cup 2018"]
[Site "Lund"]
[Date "2018.08.03"]
[Round "2"]
[White "Svensson, Bo Anders"]
[Black "Hansen, Torbjorn Ringdal"]
[Result "0-1"]
[ECO "B15"]
[WhiteElo "2209"]
[BlackElo "2422"]
[Annotator "NA"]
[PlyCount "40"]
[EventDate "2018.08.03"]
[EventType "swiss"]
[EventCountry "SWE"]
[SourceTitle "playchess.com"]
[Source "ChessBase"]
[SourceQuality "1"]
[TimeControl "900+5"]

1. e4 {[%emt 0:00:00]} c6 {[%emt 0:00:00]} 2. d4 {[%emt 0:00:00]} d5 {[%emt 0:00:00]} 3. Nc3 {[%emt 0:00:00]} dxe4 {[%emt 0:00:00]} 4. Nxe4 {[%emt 0:00:00]} Nf6 {[%emt 0:00:00]} 5. Nxf6+ {[%emt 0:00:04]} exf6 {[%emt 0:00:02]} 6. Nf3 {[%emt 0:00:24]} Bd6 {[%emt 0:00:02]} 7. Be2 {[%emt 0:00:04]} O-O {[%emt 0:00:04]} 8. O-O {[%emt 0:00:10]} Re8 {[%emt 0:00:01]} 9. h3 {[%emt 0:00:31]} Nd7 {[%emt 0:00:03]} 10. c4 {[%emt 0:00:30]} Nf8 {[%emt 0:00:09]} 11. Be3 {[%emt 0:00:25]} Be6 {[%emt 0:00:08]} 12. Qd2 {[%emt 0:00:17]} Qd7 {[%emt 0:00:07]} 13. Rad1 {[%emt 0:01:10]} Rad8 {[%emt 0:01:45]} 14. Rfe1 {[%emt 0:00:34]} Bxh3 {[%emt 0:00:04]} 15. gxh3 {[%emt 0:02:44]} Qxh3 {[%emt 0:01:27]} 16. Bf4 {[%emt 0:00:28]} Re4 {[%emt 0:00:06]} 17. Bxd6 {[%emt 0:00:22]} Rxd6 {[%emt 0:00:19]} 18. Nh2 {[%emt 0:01:39]} Rh4 19. Bf3 f5 {[%emt 0:00:53]} 20. Re8 {[%emt 0:00:49]} Rg6+ {[%emt 0:00:13]} 0-1

[Event "Cellavision Cup 2018"]
[Site "Lund"]
[Date "2018.08.03"]
[Round "2"]
[White "Hansson, Fredrik"]
[Black "Grandelius, Nils"]
[Result "0-1"]
[ECO "B22"]
[WhiteElo "2181"]
[BlackElo "2658"]
[Annotator "ChessBase"]
[PlyCount "60"]
[EventDate "2018.08.03"]
[EventType "swiss"]
[EventCountry "SWE"]
[SourceTitle "playchess.com"]
[Source "ChessBase"]
[SourceQuality "1"]
[TimeControl "900+5"]

1. e4 {[%emt 0:00:00]} c5 {[%emt 0:00:02]} 2. c3 {[%emt 0:00:04]} Nf6 {[%emt 0:00:03]} 3. e5 {[%emt 0:00:02]} Nd5 {[%emt 0:00:01]} 4. d4 {[%emt 0:00:03]} cxd4 {[%emt 0:00:03]} 5. cxd4 {[%emt 0:00:04]} e6 {[%emt 0:00:04]} 6. Nf3 {[%emt 0:00:03]} b6 {[%emt 0:00:06]} 7. Bd3 {[%emt 0:00:05]} Bb7 {[%emt 0:00:55]} 8. O-O {[%emt 0:00:04]} Be7 {[%emt 0:00:01]} 9. Nc3 {[%emt 0:00:06]} Nxc3 {[%emt 0:00:04]} 10. bxc3 {[%emt 0:00:03]} Qc7 {[%emt 0:00:10]} 11. c4 {[%emt 0:02:08]} d6 {[%emt 0:00:17]} 12. exd6 {[%emt 0:01:44]} Bxd6 {[%emt 0:00:17]} 13. h3 {[%emt 0:00:04]} Nd7 {[%emt 0:00:14]} 14. Qe2 {[%emt 0:00:30]} O-O {[%emt 0:00:31]} 15. Bb2 {[%emt 0:00:41]} Rfe8 {[%emt 0:00:14]} 16. Rfe1 {[%emt 0:02:03]} Bb4 {[%emt 0:00:19]} 17. Red1 {[%emt 0:00:10]} Rac8 {[%emt 0:00:40]} 18. Rac1 {[%emt 0:00:18]} Qf4 {[%emt 0:00:43]} 19. Qe3 {[%emt 0:00:46]} Bd6 {[%emt 0:00:31]} 20. Qxf4 {[%emt 0:04:00]} Bxf4 {[%emt 0:00:02]} 21. Rc2 {[%emt 0:00:23]} Red8 {[%emt 0:00:18]} 22. Bc1 {[%emt 0:00:26]} Bxf3 {[%emt 0:01:06]} 23. gxf3 {[%emt 0:00:05]} Bxc1 {[%emt 0:00:01]} 24. Rcxc1 {[%emt 0:00:07]} Kf8 {[%emt 0:00:17]} 25. Kf1 {[%emt 0:00:52]} Nf6 {[%emt 0:00:10]} 26. Be4 {[%emt 0:00:35]} Nh5 {[%emt 0:00:38]} 27. h4 {[%emt 0:00:57]} Nf4 {[%emt 0:00:07]} 28. d5 {[%emt 0:00:51]} f5 {[%emt 0:00:42]} 29. Bb1 {[%emt 0:00:02]} g6 {[%emt 0:00:08]} 30. dxe6 {[%emt 0:00:08]} Ke7 {[%emt 0:00:32]} 0-1

[Event "Cellavision Cup 2018"]
[Site "Lund"]
[Date "2018.08.03"]
[Round "2"]
[White "Ivarsson, Torbjorn"]
[Black "Hansen, Sune Berg"]
[Result "0-1"]
[ECO "A45"]
[WhiteElo "2156"]
[BlackElo "2589"]
[Annotator "ChessBase"]
[PlyCount "100"]
[EventDate "2018.08.03"]
[EventType "swiss"]
[EventCountry "SWE"]
[SourceTitle "playchess.com"]
[Source "ChessBase"]
[SourceQuality "1"]
[TimeControl "900+5"]

1. d4 {[%emt 0:00:00]} Nf6 {[%emt 0:00:00]} 2. Bf4 {[%emt 0:00:01]} d5 {[%emt 0:00:23]} 3. e3 {[%emt 0:00:04]} e6 {[%emt 0:00:08]} 4. c3 {[%emt 0:00:07]} Bd6 {[%emt 0:00:05]} 5. Bg3 {[%emt 0:00:02]} Ne4 {[%emt 0:00:42]} 6. Bxd6 {[%emt 0:00:15]} cxd6 {[%emt 0:00:08]} 7. Nd2 {[%emt 0:00:04]} O-O {[%emt 0:00:25]} 8. Nxe4 {[%emt 0:00:44]} dxe4 {[%emt 0:00:02]} 9. f3 {[%emt 0:01:01]} exf3 {[%emt 0:00:18]} 10. Nxf3 {[%emt 0:00:05]} Qe7 {[%emt 0:00:16]} 11. Be2 {[%emt 0:00:41]} Nd7 {[%emt 0:00:10]} 12. O-O {[%emt 0:00:12]} Nf6 {[%emt 0:00:20]} 13. Nd2 {[%emt 0:01:07]} Bd7 {[%emt 0:01:36]} 14. Qe1 {[%emt 0:00:10]} Bc6 {[%emt 0:00:31]} 15. Bf3 {[%emt 0:00:17]} e5 {[%emt 0:01:01]} 16. Qg3 {[%emt 0:01:10]} Qe6 {[%emt 0:00:19]} 17. Rae1 {[%emt 0:00:46]} Rae8 {[%emt 0:00:32]} 18. b3 {[%emt 0:00:32]} Bxf3 {[%emt 0:00:25]} 19. gxf3 {[%emt 0:00:37]} Nd5 {[%emt 0:00:30]} 20. c4 {[%emt 0:01:43]} Nb4 {[%emt 0:00:04]} 21. dxe5 {[%emt 0:00:30]} dxe5 {[%emt 0:00:23]} 22. Ne4 {[%emt 0:00:20]} f5 {[%emt 0:00:09]} 23. Nc3 {[%emt 0:00:05]} Rf6 {[%emt 0:00:14]} 24. Kh1 {[%emt 0:00:08]} Rg6 {[%emt 0:01:22]} 25. Qh3 {[%emt 0:00:01]} Rh6 {[%emt 0:00:21]} 26. Qg2 {[%emt 0:00:21]} e4 {[%emt 0:00:45]} 27. fxe4 {[%emt 0:00:39]} fxe4 {[%emt 0:00:02]} 28. Rd1 {[%emt 0:00:06]} Rg6 {[%emt 0:00:11]} 29. Qf2 {[%emt 0:00:13]} Rf6 {[%emt 0:00:50]} 30. Qg2 {[%emt 0:00:05]} Rg6 {[%emt 0:00:25]} 31. Qf2 {[%emt 0:00:03]} Nd3 {[%emt 0:00:01]} 32. Qf5 {[%emt 0:00:18]} h6 {[%emt 0:00:34]} 33. Qxe6+ {[%emt 0:00:19]} Rexe6 {[%emt 0:00:26]} 34. Nxe4 {[%emt 0:00:22]} Nb4 {[%emt 0:00:08]} 35. Ng3 {[%emt 0:00:16]} Rxe3 {[%emt 0:00:21]} 36. Rd8+ {[%emt 0:00:24]} Kh7 {[%emt 0:00:01]} 37. Rd7 {[%emt 0:00:01]} Nxa2 {[%emt 0:00:43]} 38. Rff7 {[%emt 0:00:03]} Rxb3 {[%emt 0:00:07]} 39. Rxb7 {[%emt 0:00:10]} Rxb7 {[%emt 0:00:02]} 40. Rxb7 {[%emt 0:00:01]} a6 {[%emt 0:00:07]} 41. c5 {[%emt 0:00:08]} Nc3 {[%emt 0:00:05]} 42. Nf5 {[%emt 0:00:06]} Rg5 {[%emt 0:00:11]} 43. Rf7 {[%emt 0:00:23]} Kg6 {[%emt 0:00:23]} 44. Nd6 {[%emt 0:00:24]} Rxc5 {[%emt 0:00:12]} 45. Ra7 {[%emt 0:00:02]} Re5 {[%emt 0:00:29]} 46. Rxa6 {[%emt 0:00:10]} Re6 {[%emt 0:00:01]} 47. Rb6 {[%emt 0:00:01]} Nd5 {[%emt 0:00:03]} 48. Rc6 {[%emt 0:00:15]} Kh5 {[%emt 0:00:14]} 49. Kg2 {[%emt 0:00:07]} g5 {[%emt 0:00:10]} 50. Kg3 {[%emt 0:00:08]} Nf6 {[%emt 0:00:06]} 0-1

[Event "Cellavision Cup 2018"]
[Site "Lund"]
[Date "2018.08.03"]
[Round "2"]
[White "Nordebrink, Johan"]
[Black "Hillarp Persson, Tiger"]
[Result "0-1"]
[ECO "A10"]
[WhiteElo "2146"]
[BlackElo "2542"]
[Annotator "ChessBase"]
[PlyCount "48"]
[EventDate "2018.08.03"]
[EventType "swiss"]
[EventCountry "SWE"]
[SourceTitle "playchess.com"]
[Source "ChessBase"]
[SourceQuality "1"]
[TimeControl "900+5"]

1. c4 {[%emt 0:00:00]} g6 {[%emt 0:00:00]} 2. Nf3 {[%emt 0:00:00]} Bg7 {[%emt 0:00:00]} 3. e3 {[%emt 0:00:04]} d6 {[%emt 0:00:11]} 4. Be2 {[%emt 0:00:04]} e5 {[%emt 0:00:44]} 5. Nc3 {[%emt 0:00:12]} f5 {[%emt 0:00:07]} 6. d4 {[%emt 0:00:14]} e4 {[%emt 0:00:02]} 7. Nd2 {[%emt 0:00:02]} Nf6 {[%emt 0:00:05]} 8. Qc2 {[%emt 0:00:12]} Nc6 {[%emt 0:00:15]} 9. a3 {[%emt 0:00:05]} Ne7 {[%emt 0:00:22]} 10. b4 {[%emt 0:00:08]} c6 {[%emt 0:00:14]} 11. Bb2 {[%emt 0:00:05]} d5 {[%emt 0:00:03]} 12. b5 {[%emt 0:01:32]} O-O {[%emt 0:00:23]} 13. a4 {[%emt 0:01:52]} g5 {[%emt 0:02:23]} 14. h4 {[%emt 0:01:30]} gxh4 {[%emt 0:00:02]} 15. Rxh4 {[%emt 0:00:44]} Ng6 {[%emt 0:00:21]} 16. Rh2 {[%emt 0:01:13]} f4 {[%emt 0:00:01]} 17. O-O-O {[%emt 0:00:08]} fxe3 {[%emt 0:01:03]} 18. fxe3 {[%emt 0:00:03]} Ng4 {[%emt 0:00:03]} 19. Bxg4 {[%emt 0:00:12]} Bxg4 {[%emt 0:00:02]} 20. Rdh1 {[%emt 0:00:14]} h5 {[%emt 0:00:06]} 21. Qb3 {[%emt 0:01:17]} Rf5 {[%emt 0:00:39]} 22. cxd5 {[%emt 0:00:37]} cxd5 {[%emt 0:00:02]} 23. Ncxe4 {[%emt 0:01:08]} a6 {[%emt 0:01:42]} 24. Ng3 {[%emt 0:00:22]} Qc7+ {[%emt 0:00:02]} 0-1

[Event "Cellavision Cup 2018"]
[Site "Lund"]
[Date "2018.08.03"]
[Round "2"]
[White "Ask, Josef"]
[Black "Sivuk, Vitaly"]
[Result "0-1"]
[ECO "B21"]
[WhiteElo "2144"]
[BlackElo "2535"]
[Annotator "ChessBase"]
[PlyCount "66"]
[EventDate "2018.08.03"]
[EventType "swiss"]
[EventCountry "SWE"]
[SourceTitle "playchess.com"]
[Source "ChessBase"]
[SourceQuality "1"]
[TimeControl "900+5"]

1. e4 {[%emt 0:00:00]} c5 {[%emt 0:00:00]} 2. d4 {[%emt 0:00:06]} cxd4 {[%emt 0:00:04]} 3. c3 {[%emt 0:00:00]} Nf6 {[%emt 0:00:06]} 4. e5 {[%emt 0:00:02]} Nd5 {[%emt 0:00:02]} 5. Qxd4 {[%emt 0:00:02]} e6 {[%emt 0:00:04]} 6. Nf3 {[%emt 0:00:01]} Nc6 {[%emt 0:00:03]} 7. Qe4 {[%emt 0:00:02]} f5 {[%emt 0:00:05]} 8. Qe2 {[%emt 0:00:01]} b5 {[%emt 0:00:12]} 9. g3 {[%emt 0:00:02]} a5 {[%emt 0:00:05]} 10. Nh4 {[%emt 0:00:19]} g6 {[%emt 0:04:34]} 11. Bg2 {[%emt 0:00:05]} Qc7 {[%emt 0:00:50]} 12. Nxf5 {[%emt 0:00:42]} gxf5 {[%emt 0:02:07]} 13. Qh5+ {[%emt 0:00:23]} Kd8 {[%emt 0:00:01]} 14. O-O {[%emt 0:00:47]} Qxe5 {[%emt 0:00:26]} 15. Rd1 {[%emt 0:00:27]} Nce7 {[%emt 0:03:28]} 16. Bg5 {[%emt 0:01:25]} Bb7 {[%emt 0:00:08]} 17. Na3 {[%emt 0:00:20]} h6 {[%emt 0:00:52]} 18. Bh4 {[%emt 0:00:17]} Bc6 {[%emt 0:01:04]} 19. c4 {[%emt 0:00:50]} bxc4 {[%emt 0:00:24]} 20. Nxc4 {[%emt 0:00:06]} Qg7 {[%emt 0:00:06]} 21. Qf3 {[%emt 0:01:30]} Kc7 {[%emt 0:01:01]} 22. Rac1 {[%emt 0:00:14]} Ng6 {[%emt 0:00:16]} 23. Ne3 {[%emt 0:00:48]} Nxh4 {[%emt 0:00:21]} 24. Nxd5+ {[%emt 0:00:09]} Kd8 {[%emt 0:00:01]} 25. gxh4 {[%emt 0:00:42]} exd5 {[%emt 0:00:18]} 26. Kh1 {[%emt 0:00:35]} Rg8 {[%emt 0:00:04]} 27. Bh3 {[%emt 0:00:42]} Qf6 {[%emt 0:00:07]} 28. Rxd5 {[%emt 0:00:23]} Rc8 {[%emt 0:00:10]} 29. Rcd1 {[%emt 0:00:17]} Rg7 {[%emt 0:00:15]} 30. Bxf5 {[%emt 0:00:57]} Bd6 {[%emt 0:00:01]} 31. Qe4 {[%emt 0:01:24]} Bxd5 {[%emt 0:00:11]} 32. Qxd5 {[%emt 0:00:04]} Qe5 {[%emt 0:00:03]} 33. Qxd6 {[%emt 0:00:15]} Qxd6 {[%emt 0:00:02]} 0-1

[Event "Cellavision Cup 2018"]
[Site "Lund"]
[Date "2018.08.03"]
[Round "2"]
[White "Fransson, Patrick"]
[Black "Hector, Jonny"]
[Result "0-1"]
[ECO "D00"]
[WhiteElo "2124"]
[BlackElo "2491"]
[Annotator "ChessBase"]
[PlyCount "64"]
[EventDate "2018.08.03"]
[EventType "swiss"]
[EventCountry "SWE"]
[SourceTitle "playchess.com"]
[Source "ChessBase"]
[SourceQuality "1"]
[TimeControl "900+5"]

1. d4 {[%emt 0:00:00]} d5 {[%emt 0:00:00]} 2. Bg5 {[%emt 0:00:03]} f6 {[%emt 0:00:04]} 3. Bf4 {[%emt 0:00:04]} Nc6 {[%emt 0:00:16]} 4. Nf3 {[%emt 0:00:10]} Bg4 {[%emt 0:00:04]} 5. h3 {[%emt 0:02:06]} Bh5 {[%emt 0:00:10]} 6. g4 {[%emt 0:00:24]} Bf7 {[%emt 0:00:17]} 7. e3 {[%emt 0:00:13]} h5 {[%emt 0:00:12]} 8. Rg1 {[%emt 0:00:43]} hxg4 {[%emt 0:00:08]} 9. hxg4 {[%emt 0:00:02]} e6 {[%emt 0:00:16]} 10. Nbd2 {[%emt 0:01:27]} Bd6 {[%emt 0:00:03]} 11. Bxd6 {[%emt 0:00:24]} Qxd6 {[%emt 0:00:05]} 12. c4 {[%emt 0:00:45]} Nge7 {[%emt 0:01:51]} 13. c5 {[%emt 0:00:41]} Qd7 {[%emt 0:00:08]} 14. Bb5 {[%emt 0:00:13]} a6 {[%emt 0:00:03]} 15. Ba4 {[%emt 0:00:05]} b5 {[%emt 0:00:35]} 16. cxb6 {[%emt 0:02:18]} cxb6 {[%emt 0:00:03]} 17. Rc1 {[%emt 0:00:07]} b5 {[%emt 0:00:14]} 18. Bc2 {[%emt 0:00:08]} e5 {[%emt 0:00:23]} 19. Nb3 {[%emt 0:00:15]} e4 {[%emt 0:00:06]} 20. Nfd2 {[%emt 0:00:30]} Qd6 {[%emt 0:00:23]} 21. Qe2 {[%emt 0:00:37]} f5 {[%emt 0:00:47]} 22. gxf5 {[%emt 0:00:41]} Bh5 {[%emt 0:00:17]} 23. Qf1 {[%emt 0:00:11]} Nxf5 {[%emt 0:00:06]} 24. Nxe4 {[%emt 0:00:09]} dxe4 {[%emt 0:00:15]} 25. Bxe4 {[%emt 0:00:01]} Nfe7 {[%emt 0:00:31]} 26. Rxg7 {[%emt 0:00:35]} Rc8 {[%emt 0:01:04]} 27. Nc5 {[%emt 0:01:40]} Nxd4 {[%emt 0:01:28]} 28. Qd3 {[%emt 0:02:08]} Rxc5 {[%emt 0:00:24]} 29. Rc3 {[%emt 0:00:22]} Rxc3 {[%emt 0:01:22]} 30. bxc3 {[%emt 0:00:01]} Nf3+ {[%emt 0:00:43]} 31. Kf1 {[%emt 0:00:01]} Nd2+ {[%emt 0:00:18]} 32. Kg2 {[%emt 0:00:05]} Bf3+ {[%emt 0:00:15]} 0-1

[Event "Cellavision Cup 2018"]
[Site "Lund"]
[Date "2018.08.03"]
[Round "2"]
[White "Skjoldager, Per"]
[Black "Gritsak, Orest"]
[Result "0-1"]
[ECO "B22"]
[WhiteElo "2104"]
[BlackElo "2464"]
[Annotator "ChessBase"]
[PlyCount "68"]
[EventDate "2018.08.03"]
[EventType "swiss"]
[EventCountry "SWE"]
[SourceTitle "playchess.com"]
[Source "ChessBase"]
[SourceQuality "1"]
[TimeControl "900+5"]

1. e4 c5 {[%emt 0:00:02]} 2. c3 {[%emt 0:00:00]} d5 {[%emt 0:00:07]} 3. exd5 {[%emt 0:00:00]} Qxd5 {[%emt 0:00:01]} 4. d4 {[%emt 0:00:00]} Nf6 {[%emt 0:00:02]} 5. Nf3 {[%emt 0:00:11]} e6 {[%emt 0:00:10]} 6. Na3 {[%emt 0:00:11]} Nc6 7. Nb5 {[%emt 0:00:02]} Qd8 {[%emt 0:00:07]} 8. Bf4 {[%emt 0:00:17]} Nd5 {[%emt 0:00:08]} 9. Bg3 {[%emt 0:00:50]} a6 10. Na3 {[%emt 0:00:02]} cxd4 {[%emt 0:00:21]} 11. Nxd4 {[%emt 0:00:17]} Bxa3 {[%emt 0:02:22]} 12. Nxc6 Qb6 {[%emt 0:00:02]} 13. bxa3 {[%emt 0:02:05]} Qxc6 {[%emt 0:00:54]} 14. c4 {[%emt 0:01:26]} Nc3 {[%emt 0:00:05]} 15. Qd4 Qe4+ {[%emt 0:00:01]} 16. Qxe4 {[%emt 0:00:20]} Nxe4 {[%emt 0:00:09]} 17. Be5 {[%emt 0:00:06]} f6 {[%emt 0:00:28]} 18. Bb2 e5 19. g3 {[%emt 0:00:21]} Bf5 {[%emt 0:01:48]} 20. Bg2 {[%emt 0:00:46]} O-O-O {[%emt 0:00:06]} 21. O-O {[%emt 0:02:08]} Nd2 {[%emt 0:01:45]} 22. Rfc1 {[%emt 0:00:01]} Be4 {[%emt 0:00:01]} 23. Bxe4 {[%emt 0:01:47]} Nxe4 {[%emt 0:00:02]} 24. Rc2 {[%emt 0:00:09]} Rd2 {[%emt 0:00:51]} 25. Rac1 {[%emt 0:00:23]} Rhd8 {[%emt 0:00:07]} 26. Kg2 {[%emt 0:00:26]} Nxf2 {[%emt 0:00:54]} 27. Bc3 {[%emt 0:00:28]} Rxc2 {[%emt 0:00:15]} 28. Rxc2 {[%emt 0:00:01]} Nd3 {[%emt 0:01:28]} 29. Ba5 {[%emt 0:00:48]} b6 {[%emt 0:00:04]} 30. Bc3 {[%emt 0:00:01]} Kc7 {[%emt 0:00:09]} 31. a4 {[%emt 0:00:01]} a5 {[%emt 0:00:04]} 32. c5 {[%emt 0:00:05]} Kb7 {[%emt 0:01:36]} 33. cxb6 {[%emt 0:00:59]} Rc8 {[%emt 0:00:02]} 34. Kf1 {[%emt 0:00:16]} Nb4 {[%emt 0:00:07]} 0-1

[Event "Cellavision Cup 2018"]
[Site "Lund"]
[Date "2018.08.03"]
[Round "2"]
[White "Mejvik, Jacob"]
[Black "Cramling, Pia"]
[Result "0-1"]
[ECO "E04"]
[WhiteElo "2103"]
[BlackElo "2453"]
[Annotator "ChessBase"]
[PlyCount "74"]
[EventDate "2018.08.03"]
[EventType "swiss"]
[EventCountry "SWE"]
[SourceTitle "playchess.com"]
[Source "ChessBase"]
[SourceQuality "1"]
[TimeControl "900+5"]

1. Nf3 {[%emt 0:00:00]} d5 {[%emt 0:00:04]} 2. d4 {[%emt 0:00:00]} Nf6 {[%emt 0:00:05]} 3. c4 {[%emt 0:00:00]} e6 {[%emt 0:00:01]} 4. g3 {[%emt 0:00:03]} dxc4 {[%emt 0:00:17]} 5. Bg2 {[%emt 0:00:01]} a6 {[%emt 0:00:15]} 6. O-O {[%emt 0:00:10]} Nc6 {[%emt 0:00:02]} 7. e3 {[%emt 0:00:05]} Rb8 {[%emt 0:00:11]} 8. Nfd2 {[%emt 0:00:09]} Bd7 {[%emt 0:00:37]} 9. Nxc4 {[%emt 0:00:08]} b5 {[%emt 0:00:20]} 10. Ne5 {[%emt 0:00:19]} Nxe5 {[%emt 0:00:06]} 11. dxe5 {[%emt 0:00:02]} Nd5 {[%emt 0:00:01]} 12. Bxd5 {[%emt 0:02:15]} exd5 {[%emt 0:00:02]} 13. Qxd5 {[%emt 0:00:02]} Bh3 {[%emt 0:00:16]} 14. Rd1 {[%emt 0:00:23]} Qxd5 {[%emt 0:00:07]} 15. Rxd5 {[%emt 0:00:02]} Be7 {[%emt 0:00:14]} 16. Nc3 {[%emt 0:00:21]} O-O {[%emt 0:00:07]} 17. a3 {[%emt 0:01:24]} c6 {[%emt 0:01:54]} 18. Rd1 {[%emt 0:01:14]} Rbd8 {[%emt 0:00:28]} 19. Rxd8 {[%emt 0:00:19]} Rxd8 {[%emt 0:00:09]} 20. e4 {[%emt 0:00:19]} Bc5 {[%emt 0:00:15]} 21. Bf4 {[%emt 0:00:23]} h6 {[%emt 0:00:30]} 22. b4 {[%emt 0:01:48]} Bd4 {[%emt 0:00:37]} 23. Rd1 {[%emt 0:00:20]} Rd7 {[%emt 0:00:10]} 24. Nd5 {[%emt 0:01:14]} Bb2 {[%emt 0:01:10]} 25. Ne3 {[%emt 0:00:31]} Bxa3 {[%emt 0:01:24]} 26. Rxd7 {[%emt 0:00:38]} Bxd7 {[%emt 0:00:02]} 27. Nc2 {[%emt 0:00:08]} Bb2 {[%emt 0:00:01]} 28. h4 {[%emt 0:00:01]} Be6 {[%emt 0:00:20]} 29. Ne1 {[%emt 0:01:01]} Bc4 {[%emt 0:00:41]} 30. Nf3 {[%emt 0:00:17]} Be2 {[%emt 0:00:24]} 31. e6 {[%emt 0:01:29]} f6 {[%emt 0:00:08]} 32. Kg2 {[%emt 0:00:23]} Bd3 {[%emt 0:00:35]} 33. e5 {[%emt 0:01:48]} f5 {[%emt 0:00:28]} 34. Be3 {[%emt 0:00:14]} Be4 {[%emt 0:00:10]} 35. Bc5 {[%emt 0:00:05]} g5 {[%emt 0:00:18]} 36. e7 {[%emt 0:00:18]} Kf7 {[%emt 0:00:02]} 37. e6+ Ke8 0-1

[Event "Cellavision Cup 2018"]
[Site "Lund"]
[Date "2018.08.03"]
[Round "2"]
[White "Gillefalk, Bjorn"]
[Black "Ahlander, Bjorn"]
[Result "0-1"]
[ECO "E10"]
[WhiteElo "2097"]
[BlackElo "2433"]
[Annotator "NA"]
[PlyCount "50"]
[EventDate "2018.08.03"]
[EventType "swiss"]
[EventCountry "SWE"]
[SourceTitle "playchess.com"]
[Source "ChessBase"]
[SourceQuality "1"]
[TimeControl "900+5"]

1. d4 {[%emt 0:00:00]} Nf6 {[%emt 0:00:00]} 2. c4 {[%emt 0:00:00]} e6 {[%emt 0:00:00]} 3. Nf3 {[%emt 0:00:02]} d5 {[%emt 0:00:02]} 4. g3 {[%emt 0:00:03]} Bb4+ {[%emt 0:01:00]} 5. Bd2 {[%emt 0:00:04]} Be7 {[%emt 0:00:02]} 6. Bg2 {[%emt 0:00:10]} O-O {[%emt 0:00:04]} 7. O-O {[%emt 0:00:14]} c6 {[%emt 0:00:01]} 8. Bf4 {[%emt 0:00:41]} Nbd7 {[%emt 0:00:08]} 9. Qc2 {[%emt 0:00:10]} b6 {[%emt 0:00:11]} 10. Nbd2 {[%emt 0:00:16]} Nh5 {[%emt 0:00:40]} 11. Be3 {[%emt 0:00:02]} Ba6 {[%emt 0:00:24]} 12. g4 {[%emt 0:01:02]} Nhf6 {[%emt 0:00:06]} 13. h3 {[%emt 0:00:03]} Rc8 {[%emt 0:00:43]} 14. Qa4 {[%emt 0:00:42]} Nb8 {[%emt 0:00:02]} 15. Ne5 {[%emt 0:00:11]} b5 {[%emt 0:00:42]} 16. cxb5 {[%emt 0:00:10]} Bxb5 {[%emt 0:00:15]} 17. Qd1 {[%emt 0:00:39]} Nfd7 {[%emt 0:00:16]} 18. Ndf3 {[%emt 0:00:48]} f6 {[%emt 0:00:20]} 19. Nxd7 {[%emt 0:00:05]} Nxd7 {[%emt 0:00:02]} 20. Bf4 {[%emt 0:01:14]} e5 {[%emt 0:01:08]} 21. dxe5 {[%emt 0:00:21]} fxe5 {[%emt 0:00:02]} 22. Nxe5 Rxf4 {[%emt 0:01:02]} 23. Bxd5+ {[%emt 0:01:41]} Kf8 {[%emt 0:01:05]} 24. Qd2 {[%emt 0:06:18]} Bg5 {[%emt 0:00:24]} 25. e3 {[%emt 0:00:19]} Nxe5 {[%emt 0:00:07]} 0-1

[Event "Cellavision Cup 2018"]
[Site "Lund"]
[Date "2018.08.03"]
[Round "3"]
[White "Hansen, Sune Berg"]
[Black "Seo, Jung Min"]
[Result "1/2-1/2"]
[ECO "D00"]
[WhiteElo "2589"]
[BlackElo "2356"]
[Annotator "ChessBase"]
[PlyCount "115"]
[EventDate "2018.08.03"]
[EventType "swiss"]
[EventCountry "SWE"]
[SourceTitle "playchess.com"]
[Source "ChessBase"]
[SourceQuality "1"]
[TimeControl "900+5"]

1. d4 {[%emt 0:00:00]} d5 {[%emt 0:00:00]} 2. Bf4 {[%emt 0:00:04]} Nf6 {[%emt 0:00:01]} 3. e3 {[%emt 0:00:02]} e6 {[%emt 0:00:02]} 4. Nd2 {[%emt 0:00:07]} c5 {[%emt 0:00:04]} 5. c3 {[%emt 0:00:04]} Nc6 {[%emt 0:00:01]} 6. Ngf3 {[%emt 0:00:05]} Bd6 {[%emt 0:00:02]} 7. Bg3 {[%emt 0:00:03]} O-O {[%emt 0:00:03]} 8. Bb5 {[%emt 0:00:27]} Qe7 {[%emt 0:00:48]} 9. O-O {[%emt 0:01:21]} Bxg3 {[%emt 0:00:15]} 10. hxg3 {[%emt 0:00:04]} Bd7 {[%emt 0:00:12]} 11. a4 {[%emt 0:00:36]} a6 {[%emt 0:01:05]} 12. Bxc6 {[%emt 0:00:03]} Bxc6 {[%emt 0:01:54]} 13. Ne5 {[%emt 0:00:39]} Nd7 {[%emt 0:00:18]} 14. Nd3 {[%emt 0:00:53]} e5 {[%emt 0:01:17]} 15. Re1 {[%emt 0:00:04]} Rad8 {[%emt 0:00:39]} 16. Qh5 {[%emt 0:00:18]} f5 {[%emt 0:01:52]} 17. a5 {[%emt 0:00:50]} Bb5 {[%emt 0:00:26]} 18. Nxe5 {[%emt 0:00:29]} Nxe5 {[%emt 0:00:02]} 19. dxe5 {[%emt 0:00:04]} Qxe5 {[%emt 0:00:00]} 20. Nf3 {[%emt 0:01:14]} Qf6 {[%emt 0:00:22]} 21. Rac1 {[%emt 0:00:36]} Rc8 {[%emt 0:00:40]} 22. Rcd1 {[%emt 0:00:23]} Rcd8 {[%emt 0:00:30]} 23. Rd2 {[%emt 0:00:43]} Bc6 {[%emt 0:00:32]} 24. Rc1 {[%emt 0:00:04]} g6 {[%emt 0:00:37]} 25. Qh6 {[%emt 0:00:35]} Rfe8 {[%emt 0:02:23]} 26. b4 {[%emt 0:01:06]} c4 {[%emt 0:00:55]} 27. Rd4 {[%emt 0:00:22]} Qg7 {[%emt 0:00:05]} 28. Qh4 {[%emt 0:00:29]} Rd7 {[%emt 0:00:53]} 29. Rcd1 {[%emt 0:00:44]} Rde7 {[%emt 0:00:15]} 30. Qh3 {[%emt 0:00:20]} Re4 {[%emt 0:00:13]} 31. Ng5 {[%emt 0:00:25]} Rxd4 {[%emt 0:00:10]} 32. Rxd4 {[%emt 0:00:03]} h6 {[%emt 0:00:12]} 33. Nf3 {[%emt 0:00:01]} Re4 {[%emt 0:00:21]} 34. Rxe4 {[%emt 0:00:47]} dxe4 {[%emt 0:00:01]} 35. Nd4 {[%emt 0:00:02]} Bd7 {[%emt 0:00:02]} 36. Qh4 {[%emt 0:00:05]} g5 {[%emt 0:00:01]} 37. Qh5 {[%emt 0:00:04]} Qf6 {[%emt 0:00:07]} 38. Qe2 {[%emt 0:00:12]} Qf7 {[%emt 0:00:07]} 39. Qd1 {[%emt 0:00:11]} Qd5 {[%emt 0:00:08]} 40. Kf1 {[%emt 0:00:24]} Kf7 {[%emt 0:00:14]} 41. Ke1 {[%emt 0:00:04]} Kg8 {[%emt 0:00:02]} 42. Qc2 {[%emt 0:00:16]} Kg7 {[%emt 0:00:03]} 43. Qd1 {[%emt 0:00:09]} Kg8 {[%emt 0:00:03]} 44. Kd2 {[%emt 0:00:02]} Kg7 {[%emt 0:00:04]} 45. Kc1 {[%emt 0:00:02]} Kg8 {[%emt 0:00:05]} 46. Qh5 {[%emt 0:00:14]} Kg7 {[%emt 0:00:06]} 47. Kb2 {[%emt 0:00:03]} Qe5 {[%emt 0:00:16]} 48. Ka3 {[%emt 0:00:07]} Qd5 {[%emt 0:00:05]} 49. Qd1 {[%emt 0:00:10]} Kg8 {[%emt 0:00:01]} 50. Kb2 {[%emt 0:00:07]} Kf7 {[%emt 0:00:05]} 51. Kc1 {[%emt 0:00:03]} Kg8 {[%emt 0:00:04]} 52. Nc2 {[%emt 0:00:06]} Qxd1+ {[%emt 0:00:13]} 53. Kxd1 {[%emt 0:00:01]} Ba4 {[%emt 0:00:01]} 54. Kc1 {[%emt 0:00:01]} Bxc2 {[%emt 0:00:01]} 55. Kxc2 {[%emt 0:00:01]} Kf7 {[%emt 0:00:01]} 56. Kb2 {[%emt 0:00:11]} Ke6 {[%emt 0:00:02]} 57. Ka3 {[%emt 0:00:03]} Kd5 {[%emt 0:00:00]} 58. Kb2 {[%emt 0:00:18]} 1/2-1/2